Cogmind - Beta 14 @@@ ROGUE MODE // 2025.01.02 @ 22:42:01 Player: ncryptek Result: Destroyed by L7-8S7(R) with Subdweller Beam Cannon Performance ------------- Evolutions (0) 0 Regions Visited (2) 400 Robots Destroyed (10) 50 Value Destroyed (268) 268 Prototype IDs (0) 0 Alien Tech Used (0) 0 Bonus (0) 0 TOTAL SCORE: 718 Bonus ------- None Cogmind --------- Core Integrity 0/250 Matter 263/300 Energy 93/100 System Corruption 0% Temperature Cool (15) Movement Core (350) Ox6 Location -10/Subcaves Parts ------- > --- POWER (1) -------- (None) > --- PROPULSION (2) --- (None) > --- UTILITY (2) ------ Scrap Shield > --- WEAPON (2) ------- Medium Laser > --- INVENTORY (5) ---- Structural Scanner Structural Scanner Mining Claw Peak State ------------ > --- POWER ------------ Ion Engine > --- PROPULSION ------- Aluminum Leg Aluminum Leg > --- UTILITY ---------- Small Storage Unit Core Shielding > --- WEAPON ----------- Medium Laser Assault Rifle > --- INVENTORY -------- Light Ion Engine Structural Scanner Structural Scanner Visual Processing Unit Scrap Shield Datajack Mining Claw [Rating: 8] Favorites ----------- Power Ion Engine Engine Ion Engine Propulsion Light Treads Treads Light Treads Leg Aluminum Leg Wheel Compact Wheel Utility Small Storage Unit Device Structural Scanner Storage Small Storage Unit Protection Core Shielding Weapon Assault Rifle Energy Gun EM Pulse Gun Ballistic Gun Assault Rifle Slashing Weapon Mining Claw Build | -11 -10 -10 ------- Run | Yrd Mat Sub Slots Evolved . | . . . Power . | . . . Propulsion . | . . . Utility . | . . . Weapon . | . . . Parts Attached 22 | 10 10 2 Power 4 | 2 2 . Engine 4 | 2 2 . Core . | . . . Reactor . | . . . Propulsion 6 | 4 2 . Treads 2 | 2 . . Leg 2 | . 2 . Wheel 2 | 2 . . Hover . | . . . Flight . | . . . Utility 5 | 1 2 2 Device 1 | . 1 . Storage 1 | 1 . . Processor . | . . . Hackware . | . . . Protection 3 | . 1 2 Artifact . | . . . Weapon 7 | 3 4 . Energy Gun 3 | 2 1 . Energy Cannon . | . . . Ballistic Gun 3 | 1 2 . Ballistic Cannon . | . . . Launcher . | . . . Special Weapon . | . . . Impact Weapon . | . . . Slashing Weapon 1 | . 1 . Piercing Weapon . | . . . Special Melee Weapon . | . . . Unidentified Prototypes . | . . . Parts Lost 5 | . 1 4 Power 1 | . . 1 Propulsion 2 | . . 2 Utility . | . . . Weapon 2 | . 1 1 Highest Loss Streak 4 | . 1 4 To Critical Strikes . | . . . Average Slot Usage (%) 99 | . 99 93 Engine 13 | . 13 12 Treads 15 | . 16 . Leg 12 | . 11 24 Device 6 | . 7 . Storage 14 | . 14 14 Protection 7 | . 6 14 Energy Gun 14 | . 14 14 Ballistic Gun 12 | . 12 12 Peak Build Rating 8 | 6 7 8 Average Rating 6 | 4 6 7 On Entrance 4 | . 6 7 Naked Turns . | . . . Heaviest Build 20 | 14 15 20 Greatest Support 40 | 40 40 20 Greatest Overweight (x) 6 | . . 6 Average Overweight (x) . | . . . Largest Inventory Capacity 8 | 8 8 8 Average Capacity 7 | 6 8 7 Most Carried 8 | 5 8 8 Average Carried 5 | 3 5 7 Final Capacity 8 | 8 8 5 Final Carried 6 | 3 6 3 Class Distribution -------------------- 100% | Mutant Dominant Class ---------------- Mutant | -10/Materials Mutant | -10/Subcaves Resources | -11 -10 -10 ----------- Run | Yrd Mat Sub Matter Collected 514 | 229 285 . Remotely . | . . . Salvage Created 302 | . 302 . Parts 21 | . 21 . Haulers Intercepted . | . . . Recyclers Shooed . | . . . Parts Field Recycled . | . . . Retrieved Matter . | . . . Parts Self-Destructed . | . . . Prevented . | . . . Kills | -11 -10 -10 ------- Run | Yrd Mat Sub Combat Hostiles Destroyed 8 | . 8 . Guns 8 | . 8 . Classes Destroyed 3 | . 3 . Watcher 2 | . 2 . Swarmer 3 | . 3 . Grunt 5 | . 5 . Best Kill Streak 3 | . 3 . Combat Bots Only 3 | . 3 . Max Kills in Single Turn 1 | . 1 . Gunslinging . | . . . Exploded . | . . . Melee . | . . . Uniques/NPCs Destroyed . | . . . Combat | -11 -10 -10 -------- Run | Yrd Mat Sub Hostile Shots Fired 110 | . 58 52 Missed 41 | . 20 21 Damage Taken 1232 | . 554 678 Core 258 | . 81 177 Absorbed by Shields . | . . . Redirected to Shielding 43 | . 12 31 Core Remaining (%) 100 | 100 . . Volleys Fired 52 | . 49 3 Largest 2 | . 2 2 Hottest 70 | . 70 70 Shots Fired 104 | . 98 6 Gun 104 | . 98 6 Cannon . | . . . Launcher . | . . . Special . | . . . Kinetic 52 | . 49 3 Thermal 17 | . 14 3 Explosive . | . . . Electromagnetic 35 | . 35 . Robot Hit Streak 4 | . 4 4 Robot Miss Streak 6 | . 6 2 Penetration Max . | . . . Secondary Targets 1 | . 1 . Max Gunslinging Chain 1 | . 1 . Shots Hit Robots 47 | . 43 4 Core Hits 18 | . 17 1 Critical Kills . | . . . Critical Parts Destroyed 1 | . 1 . Critical Strikes 1 | . 1 . Destroy 1 | . 1 . Melee Attacks 4 | . 4 . Impact . | . . . Slashing 4 | . 4 . Piercing . | . . . Sneak Attacks . | . . . Combat Hostiles . | . . . Follow-up Attacks . | . . . Damage Inflicted 664 | . 612 52 Guns 640 | . 588 52 Cannons . | . . . Explosions 24 | . 24 . Melee . | . . . Ramming . | . . . Kinetic 288 | . 261 27 Thermal 112 | . 87 25 Explosive . | . . . Electromagnetic 264 | . 264 . Impact . | . . . Slashing . | . . . Piercing . | . . . Highest Corruption . | . . . Average Corruption . | . . . Corruption Purged . | . . . Corruption Blocked . | . . . Overload Shots . | . . . Overflow Damage . | . . . Projectiles . | . . . Explosions . | . . . Melee . | . . . Knockbacks . | . . . Impact . | . . . Kinetic . | . . . Secondary . | . . . Self-Inflicted Damage 108 | . 108 . Shots 2 | . 2 . Rammed . | . . . Targets Rammed . | . . . Kicked . | . . . Crushed . | . . . Highest Temperature 124 | . 124 . Average Temperature 35 | . 35 . Received Heat Transfer 318 | . 189 129 Siege Activations . | . . . Robots Corrupted . | . . . Combat Hostiles . | . . . Parts Fried 1 | . 1 . Impact Corruptions . | . . . Robots Melted . | . . . Combat Hostiles . | . . . Parts Melted . | . . . Heat Transferred 309 | . 235 74 Parts Sabotaged . | . . . Parts Stolen . | . . . Parts Stripped . | . . . Power Chain Reactions 1 | . 1 . Alert | -11 -10 -10 ------- Run | Yrd Mat Sub Peak Influence 211 | . 211 . Initial . | . . . Average 69 | . 75 . Maximum Alert Level 1 | . 1 . Low Security (%) 94 | 100 93 . Level 1 5 | . 6 . Level 2 . | . . . Level 3 . | . . . Level 4 . | . . . Level 5 . | . . . High Security . | . . . Max Security . | . . . Squads Dispatched . | . . . Investigation . | . . . Extermination . | . . . Reinforcement . | . . . Assault . | . . . Garrison . | . . . Intercept . | . . . Searches Triggered . | . . . Construction Impeded . | . . . Haulers Reinforced . | . . . Active Scanning Responses . | . . . Cargo Convoy Interrupts . | . . . Stealth | -11 -10 -10 --------- Run | Yrd Mat Sub Distress Signals 1 | . 1 . Communications Jammed . | . . . Distress Signals . | . . . Times Spotted 26 | . 15 11 Peak Tracking Total 11 | . 3 11 Tactical Retreats 1 | . 1 . Traps | -11 -10 -10 ------- Run | Yrd Mat Sub Traps Triggered 1 | . 1 . Indirectly . | . . . Trap Hack Attempts . | . . . Triggered . | . . . Disarmed . | . . . Reprogrammed . | . . . Reused . | . . . Traps Extracted . | . . . Installed . | . . . Triggered . | . . . Machines | -11 -10 -10 ---------- Run | Yrd Mat Sub Machines Disabled 1 | . 1 . Max in Single Turn 1 | . 1 . Machines Repaired . | . . . Machines Dismantled . | . . . Machines Sabotaged . | . . . Overloaded Fab Kills . | . . . Hacking | -11 -10 -10 --------- Run | Yrd Mat Sub Machines Accessed 6 | . 6 . Terminals 6 | . 6 . Fabricators . | . . . Repair Stations . | . . . Recycling Units . | . . . Scanalyzers . | . . . Garrison Access . | . . . Total Hacks 21 | . 21 . Successful 6 | . 6 . Failed 15 | . 15 . Catastrophic 4 | . 4 . Database Lockouts . | . . . Manual 1 | . 1 . Terminals 21 | . 21 . Fabricators . | . . . Repair Stations . | . . . Recycling Units . | . . . Scanalyzers . | . . . Garrison Access . | . . . Terminal Hacks 6 | . 6 . Record 5 | . 5 . Alert Level 1 | . 1 . Fabricator Hacks . | . . . Repair Station Hacks . | . . . Recycling Unit Hacks . | . . . Scanalyzer . | . . . Garrison Access Hacks . | . . . Unauthorized Hacks . | . . . Terminals . | . . . Fabricators . | . . . Repair Stations . | . . . Recycling Units . | . . . Scanalyzers . | . . . Garrison Access . | . . . Data Cores Recovered . | . . . Used . | . . . Hacking Detections 5 | . 5 . Full Trace Events 1 | . 1 . Feedback Events . | . . . Feedback Blocked . | . . . Robot Schematics Acquired . | . . . Robots Built . | . . . Authchips . | . . . Time . | . . . Total Robot Build Rating . | . . . Part Schematics Acquired . | . . . Parts Built . | . . . Authchips . | . . . Time . | . . . Total Part Build Rating . | . . . Parts Repaired . | . . . Time . | . . . Parts Recycled . | . . . Recycled Matter . | . . . Retrieved Matter . | . . . Retrieved Components . | . . . Parts Scanalyzed . | . . . Part Schematics Acquired . | . . . Parts Damaged . | . . . Bothacking | -11 -10 -10 ------------ Run | Yrd Mat Sub Used RIF Installer . | . . . Robots Hacked . | . . . Non-combat . | . . . Combat . | . . . Robot Hacks Applied . | . . . Relay Couplers Released . | . . . Fabnet Peak Effective % . | . . . Robots Rewired . | . . . Allies Hacked . | . . . Hacks Repelled . | . . . Allies | -11 -10 -10 -------- Run | Yrd Mat Sub Total Allies . | . . . Largest Group . | . . . Highest-Rated Group . | . . . Highest-Rated Ally . | . . . Total Orders . | . . . Ally Attacks . | . . . Total Damage . | . . . Kills . | . . . Allies Corrupted . | . . . Allies Melted . | . . . Intel | -11 -10 -10 ------- Run | Yrd Mat Sub Robot Analysis Total . | . . . Derelict Logs Recovered . | . . . Drone Launches . | . . . Drone Recoveries . | . . . Exploration | -11 -10 -10 ------------- Run | Yrd Mat Sub Turns Passed 1296 | 94 1107 95 Spaces Moved 752 | 60 628 64 Core 9 | 6 . 3 Treads 380 | 25 355 . Legs 334 | . 273 61 Wheels 29 | 29 . . Hover . | . . . Flight . | . . . Fastest Speed 50 | 50 120 120 Average Speed 139 | 116 142 129 Slowest Speed 350 | 160 160 350 Overloaded Moves . | . . . Propulsion Burnouts . | . . . Robots Hopped . | . . . Cave-ins Triggered . | . . . Exploration Rate (%) 35 | 4 93 10 Regions Visited 2 Branch Regions 1 Pre-discovered Areas . | . . . Known Exits Taken . | . . . Unknown Exits Taken 2 | 1 1 . Scrap Searched . | . . . Spaces Dug 2 | . 2 . Terrain Destroyed 33 | . 33 . Melee 2 | . 2 . Projectile . | . . . AOE 31 | . 31 . Terrain Rammed . | . . . Walls Destroyed . | . . . Machines Disabled . | . . . Actions | -11 -10 -10 --------- Run | Yrd Mat Sub Total 889 | 84 732 73 Wait 27 | . 27 . Move 750 | 59 627 64 Hop . | . . . Pick Up 24 | 12 11 1 Fast Attach 1 | . . 1 Attach 11 | 6 4 1 Detach . | . . . Swap 10 | 4 6 . Drop 10 | 3 4 3 Fire 52 | . 49 3 Melee 4 | . 4 . Ram . | . . . Kick . | . . . Crush . | . . . Escape Stasis . | . . . Rewire . | . . . Trap . | . . . Miscellaneous . | . . . Route ------- -11/Scrapyard -10/Materials (discovered 5 exits: [*Mat x2] / [*Min x2] / [*Sub]) -10/Subcaves History --------- Turn | Location | Event 8 | -11/Scrapyard | Discovered new exit (range 16) 95 | -11/Scrapyard | Entered Materials 156 | -10/Materials | Discovered new exit (range 12) 180 | -10/Materials | Discovered new exit (range 15) 304 | -10/Materials | Build established: Mutant 381 | -10/Materials | Discovered new exit (range 12) 395 | -10/Materials | Discovered new exit (range 16) 1186 | -10/Materials | Discovered new exit (range 7) 1202 | -10/Materials | Entered Subcaves 1274 | -10/Subcaves | Ambushed by swarm of Subdwellers 1275 | -10/Subcaves | Ambushed by Subdwellers from Twisted Machinery 1275 | -10/Subcaves | Ambushed by Subdwellers from Twisted Machinery 1275 | -10/Subcaves | Ambushed by Subdwellers from Twisted Machinery 1275 | -10/Subcaves | Ambushed by Subdwellers from Twisted Machinery 1286 | -10/Subcaves | Core integrity fell below 50% 1291 | -10/Subcaves | Core integrity fell below 20% 1297 | -10/Subcaves | Destroyed by L7-8S7(R) with Subdweller Beam Cannon Last Messages --------------- Machinery. DV-ML5(R) angrily emerges from the Twisted Machinery. QS-46F(R) emerges from the Twisted Machinery. B8-H1R(h) destroyed. DV-ML5(R) destroyed. Assault Rifle destroyed. BZ-F7E(g): "Sorry we're late! Had another grouchy Sub to deal with. Who's the new fellow?" Aluminum Leg destroyed. 2Z-LXU(R) destroyed. Ion Engine destroyed. Dropped Core Shielding. ML-COY(R) destroyed. Dropped Sml. Storage Unit. Subatomizers dissect the Battle Rifle. KA-P8J(R) affixes Scrap Shield Fragment to Scrap Shield. C3-0S3(R) destroyed. Map ----- +----------------------------------------------------+ | ?????????????????????????????????????????????????? | | ?????????????????????????????????????????????????? | | ?????????????????????????????????????????????????? | | ?????????????????????? ????????????????????????? | | ????????????????????## ????????????????????????? | | ???????????????????## ????????????????????????? | | ???????????????????# ????????????????????????? | | ???????????????????# ????????????????????????? | | ???????????????????# ????????????????????????? | | ???????????????????# ????????????????????????? | | ???????????????????# ????????????????????????? | | ??????????????###??# ????????????????????????? | | ??????????????# ### #????????????????????????? | | ??????????????? ###??????????????????????? | | ???????????????? #??#???????????????????? | | ?????????????????? R ## #???????????????????? | | ??????????????#????# "#????????????????????? | | ??????????????# ?###*R #????????????????????? | | ??????????????# # !%! #????????????????????? | | ??????????????#" R%R #####????????????????????? | | ??????????????#"# &&=R=##???????????????????????? | | ????????????????## &!=[ ###?????????????????????? | | ???????????????### R%R !*##????????????????????? | | ?????????????### * !!"#????????????????????? | | ?????????????# /###?###????????????????? | | ????????????# ## @ ### #????????????????? | | ???????????# #?# #????????????????? | | ???????????# ###??# ##????????????????? | | ???????????##??????## ##???? #???????????? | | ????????????????????#g ####? ##??????????? | | ????????????????????# # #??????????? | | ?????????????????#### #??????????? | | ?????????????????# g ##??????????? | | ?????????????????## g ### #????????? | | ??????????????????## #???????? | | ???????????????????## ###???????? | | ????????????????????## ##?????????? | | ????????????????????## ### ######## #??????????? | | ????????????????????# ######???????###??????????? | | ?????????????????#### #????????????????????????? | | ?????????????????# #????????????????????????? | | ????????????????## #????????????????????????? | | ?????????????#### ##????????????????????????? | | ????????????## #?????????????????????????? | | ????????????# #?????????????????????????? | | ????????????# #?????????????????????????? | | ???????????## ####?????????????????????????? | | ???????????# ##???????????????????????????? | | ???????????# #???????????????????????????? | | ???????????#### ##???????????????????????????? | +----------------------------------------------------+ Best States ------------- Heat Dissipation 25 Energy Generation 10 Energy Capacity 250 Matter Stores 281 Matter Capacity 300 Sight Range 16 Terrain Scan Density 10 Core Shielding 20 Evasion (%) 55 Recoil Reduction 2 Item Schematics ----------------- None Robot Schematics ------------------ None Fabricated ------------ Nothing Alien Tech Used ----------------- None Achievements -------------- None Challenges ------------ None Game ------ Seed CoolantMakeshiftFilter Manual? 0 Play Time 00:17:39 Cumulative 2.5 hours Start 2025.01.02 @ 22:27:07 End 2025.01.02 @ 22:42:01 Sessions 1 Manual Loads 0 Difficulty Rogue Special Mode None Game No. 4 Rogue 4 Adventurer 0 Explorer 0 Win Type - Total 0 Types 0/0/0/0/0/0/0/0/0 Lore% 6 Gallery% 5 Achievement% 6 Wizard Run 0 Options --------- Layout 1 ASCII 0 Keyboard 0 Movement Mouse Keybinds 0 Fullscreen 1 Font 32/SmallcapsGlow Map View 50x35 Zoom Use 0% Tactical HUD 0 Map Filters NONE Filters NONE Steam 1 RUN: 73e3e91c-19d2-4e1c-830f-026e53e7187d